Workbook

Sheet Početak
B1: OSNOVNI PODACI O OVOM PREDLOŠKU
B2: Koristite ovaj predložak da biste kreirali budžet marketinga kanala.
B3: Unesite očekivanu prodaju za svaki mesec i druge detalje u tabelama.
B4: Ukupne vrednosti se automatski izračunavaju i mini-grafikoni se ažuriraju.
B5: Napomena:
B6: Dodatna uputstva navedena su u koloni A na radnom listu „BUDŽET MARKETINGA KANALA“. Taj tekst je namerno skriven. Da biste uklonili tekst, izaberite kolonu A, a zatim izaberite stavku „IZBRIŠI“. Da biste otkrili tekst, izaberite kolonu A, a zatim promenite boju fonta.
B7: Da biste saznali više o tabelama, pritisnite taster SHIFT, a zatim unutar tabele pritisnite taster F10, izaberite opciju „TABELA“, a zatim stavku „ALTERNATIVNI TEKST“.

Sheet Budžet marketinga kanala
A1: Kreiranje budžet marketinga kanala u ovom radnom listu. Naslov ovog radnog lista nalazi se u ćeliji sa desne strane. Korisna uputstva su u ćelijama u ovoj koloni. Pritisnite strelicu nadole da biste počeli. Naslov ovog radnog lista nalazi se u ćeliji sa desne strane. | B1: BUDŽET MARKETINGA KANALA
A2: Cena Stopa i Mesec nalaze se u ovom redu, od ćelija C2 do O2 i oznaka Zbir u ćeliji Q2. | C2: Cena | D2: 1. mesec | E2: 2. mesec | F2: 3. mesec | G2: 4. mesec | H2: 5. mesec | I2: 6. mesec | J2: 7. mesec | K2: 8. mesec | L2: 9. mesec | M2: 10. mesec | N2: 11. mesec | O2: 12. mesec | Q2: Zbir
A3: Oznaka Zbir vrednost očekivane prodaje nalazi se u ćeliji u desnom uglu. Unesite očekivanu prodaju za svaki mesec u ćelije D3 do O3. Zbir se automatski izračunava u ćeliji Q3. | B3: Zbir VREDNOST OČEKIVANE PRODAJE RSD(000) | D3: 750 | E3: 200 | F3: 500 | G3: 1,500 | H3: 1,200 | I3: 1,500 | J3: 1,500 | K3: 1,800 | L3: 2,000 | M3: 2,000 | N3: 2,000 | O3: 2,000 | Q3: =SUM(D3:O3) -> 16,950
A4: Unesite detalje u tabelu Osoblje počevši od ćelije sa desne strane. Zbir osoblje za svaki mesec se automatski izračunava na kraju tabele i godišnja Zbir vrednost za osobile u ćeliji Q9. Mini-grafikon se ažurira u ćeliji S9. Sledeće uputstvo se nalazi u ćeliji A10. | B4: Stavke osoblja | C4: Cena | D4: 1. mesec | E4: 2. mesec | F4: 3. mesec | G4: 4. mesec | H4: 5. mesec | I4: 6. mesec | J4: 7. mesec | K4: 8. mesec | L4: 9. mesec | M4: 10. mesec | N4: 11. mesec | O4: 12. mesec
B5: OSOBLJE (% UKUPNE PRODAJE) | D5: =D11+D33+D41+D48 -> 110% | E5: 110% | F5: 110% | G5: 110% | H5: 110% | I5: 110% | J5: 110% | K5: 110% | L5: 85% | M5: 85% | N5: 85% | O5: 85%
B6: Ljudski resursi – brojanje | C6: 5 | D6: =+$C$6 -> 5 | E6: 5 | F6: 5 | G6: 5 | H6: 5 | I6: 5 | J6: 5 | K6: 5 | L6: 5 | M6: 5 | N6: 5 | O6: 5
B7: Ljudski resursi – trošak | D7: =$C$6*D6 -> 25.00 | E7: 25.00 | F7: 25.00 | G7: 25.00 | H7: 25.00 | I7: 25.00 | J7: 25.00 | K7: 25.00 | L7: 25.00 | M7: 25.00 | N7: 25.00 | O7: 25.00 | Q7: =SUM('Budžet marketinga kanala'!$D7:$O7) -> 300.00
B8: Provizija | C8: 0.10% | D8: =D3*$C$8 -> 0.75 | E8: 0.20 | F8: 0.50 | G8: 1.50 | H8: 1.20 | I8: 1.50 | J8: 1.50 | K8: 1.80 | L8: 2.00 | M8: 2.00 | N8: 2.00 | O8: 2.00 | Q8: =SUM('Budžet marketinga kanala'!$D8:$O8) -> 16.95
B9: Zbir vrednost za osoblje RSD(000) | D9: =SUM(D7:D8) -> 25.75 | E9: =SUM(E7:E8) -> 25.20 | F9: 25.50 | G9: 26.50 | H9: 26.20 | I9: 26.50 | J9: 26.50 | K9: 26.80 | L9: 27.00 | M9: 27.00 | N9: 27.00 | O9: 27.00 | Q9: =SUM(Q7:Q8) -> 316.95
A10: Unesite detalje u tabelu Direktni marketing počevši od ćelije sa desne strane. Zbir za reklamiranje preko telefona za svaki mesec automatski se izračunava na kraju tabele i godišnja zbir vrednost u ćeliji Q17. Mini-grafikon se ažurira u ćeliji S17. Sledeće uputstvo se nalazi u ćeliji A18. | B10: Stavke direktnog marketinga | C10: Cena | D10: 1. mesec | E10: 2. mesec | F10: 3. mesec | G10: 4. mesec | H10: 5. mesec | I10: 6. mesec | J10: 7. mesec | K10: 8. mesec | L10: 9. mesec | M10: 10. mesec | N10: 11. mesec | O10: 12. mesec
B11: DIREKTNI MARKETING (% UKUPNE PRODAJE) | D11: 100% | E11: 100% | F11: 75% | G11: 40% | H11: 33% | I11: 25% | J11: 20% | K11: 10% | L11: 5% | M11: 5% | N11: 5% | O11: 5%
B12: Reklamiranje preko telefona (% direktne prodaje) | D12: 100% | E12: 50% | F12: 50% | G12: 50% | H12: 50% | I12: 50% | J12: 50% | K12: 50% | L12: 50% | M12: 50% | N12: 50% | O12: 50%
B13: Ljudski resursi – brojanje | C13: 3 | D13: =$C$13*D12 -> 3 | E13: 1.5 | F13: 1.5 | G13: 1.5 | H13: 1.5 | I13: 1.5 | J13: 1.5 | K13: 1.5 | L13: 1.5 | M13: 1.5 | N13: 1.5 | O13: 1.5 | Q13: =SUM('Budžet marketinga kanala'!$D13:$O13) -> 19.50
B14: Podrška infrastrukture | D14: 25 | E14: 10 | F14: 25 | G14: 10 | H14: 25 | I14: 10 | J14: 25 | K14: 10 | L14: 25 | M14: 10 | N14: 25 | O14: 10 | Q14: =SUM('Budžet marketinga kanala'!$D14:$O14) -> 210.00
B15: Provizija | C15: 0.10% | D15: =$C$15*D3*D11*D12 -> 0.75 | E15: 0.10 | F15: 0.19 | G15: 0.30 | H15: 0.20 | I15: 0.19 | J15: 0.15 | K15: 0.09 | L15: 0.05 | M15: 0.05 | N15: 0.05 | O15: 0.05 | Q15: =SUM('Budžet marketinga kanala'!$D15:$O15) -> 2.16
B16: Obuka | D16: 25 | E16: 10 | F16: 25 | G16: 10 | H16: 25 | I16: 10 | J16: 25 | K16: 10 | L16: 25 | M16: 10 | N16: 25 | O16: 10 | Q16: =SUM('Budžet marketinga kanala'!$D16:$O16) -> 210.00
B17: Zbir za reklamiranje preko telefona RSD(000) | D17: =SUM(D13:D16) -> 53.75 | E17: =SUM(E13:E16) -> 21.60 | F17: =SUM(F13:F16) -> 51.69 | G17: 21.80 | H17: 51.70 | I17: 21.69 | J17: 51.65 | K17: 21.59 | L17: 51.55 | M17: 21.55 | N17: 51.55 | O17: 21.55 | Q17: =SUM(Q13:Q16) -> 441.66
A18: Unesite detalje u tabelu Internet marketing počevši od ćelije sa desne strane. Zbir vrednost za internet marketing za svaki mesec se automatski izračunava na kraju tabele i godišnja Zbir vrednost u ćeliji Q24. Mini-grafikon se ažurira u ćeliji S24. Sledeće uputstvo se nalazi u ćeliji A25. | B18: Stavke internet marketinga | C18: Cena | D18: 1. mesec | E18: 2. mesec | F18: 3. mesec | G18: 4. mesec | H18: 5. mesec | I18: 6. mesec | J18: 7. mesec | K18: 8. mesec | L18: 9. mesec | M18: 10. mesec | N18: 11. mesec | O18: 12. mesec
B19: Internet Marketing (% direktne prodaje) | D19: 25% | E19: 25% | F19: 25% | G19: 25% | H19: 25% | I19: 25% | J19: 25% | K19: 25% | L19: 25% | M19: 25% | N19: 25% | O19: 25%
B20: Ljudski resursi – brojanje | C20: 1 | D20: =$C$20*D19 -> 0.25 | E20: 0.25 | F20: 0.25 | G20: 0.25 | H20: 0.25 | I20: 0.25 | J20: 0.25 | K20: 0.25 | L20: 0.25 | M20: 0.25 | N20: 0.25 | O20: 0.25 | Q20: =SUM('Budžet marketinga kanala'!$D20:$O20) -> 3.00
B21: Izrada veb sajtova (jednokratni trošak) | D21: 500 | Q21: =SUM('Budžet marketinga kanala'!$D21:$O21) -> 500.00
B22: Hosting | D22: 10 | E22: 10 | F22: 10 | G22: 10 | H22: 10 | I22: 10 | J22: 10 | K22: 10 | L22: 10 | M22: 10 | N22: 10 | O22: 10 | Q22: =SUM('Budžet marketinga kanala'!$D22:$O22) -> 120.00
B23: Podrška i održavanje | D23: 25 | N23: 25 | Q23: =SUM('Budžet marketinga kanala'!$D23:$O23) -> 50.00
B24: Zbir vrednost za internet marketing RSD(000) | D24: =SUM(D20:D23) -> 535.25 | E24: =SUM(E20:E23) -> 10.25 | F24: 10.25 | G24: 10.25 | H24: 10.25 | I24: 10.25 | J24: 10.25 | K24: 10.25 | L24: 10.25 | M24: 10.25 | N24: 35.25 | O24: 10.25 | Q24: =SUM(Q20:Q23) -> 673.00
A25: Unesite detalje u tabelu Direktna pošta počevši od ćelije sa desne strane. Zbir vrednost direktne pošte za svaki mesec se automatski izračunava na kraju tabele i godišnja Zbir vrednost u ćeliji Q30. Sledeće uputstvo se nalazi u ćeliji A31. | B25: Stavke direktne pošte | C25: Cena | D25: 1. mesec | E25: 2. mesec | F25: 3. mesec | G25: 4. mesec | H25: 5. mesec | I25: 6. mesec | J25: 7. mesec | K25: 8. mesec | L25: 9. mesec | M25: 10. mesec | N25: 11. mesec | O25: 12. mesec
B26: Direktna pošta (% direktne prodaje)
B27: Ljudski resursi – trošak | Q27: =SUM('Budžet marketinga kanala'!$D27:$O27) -> 0.00
B28: Materijal | D28: 1000 | E28: 1000 | F28: 1000 | G28: 1000 | H28: 1000 | I28: 1000 | J28: 1000 | K28: 1000 | L28: 1000 | M28: 1000 | N28: 1000 | O28: 1000 | Q28: =SUM('Budžet marketinga kanala'!$D28:$O28) -> 12,000.00
B29: Poštarina | D29: 250 | E29: 250 | F29: 250 | G29: 250 | H29: 250 | I29: 250 | J29: 250 | K29: 250 | L29: 250 | M29: 250 | N29: 250 | O29: 250 | Q29: =SUM('Budžet marketinga kanala'!$D29:$O29) -> 3,000.00
B30: Zbir vrednost direktne pošte RSD(000) | D30: =SUM(D27:D29) -> 1,250.00 | E30: =SUM(E27:E29) -> 1,250.00 | F30: 1,250.00 | G30: 1,250.00 | H30: 1,250.00 | I30: 1,250.00 | J30: 1,250.00 | K30: 1,250.00 | L30: 1,250.00 | M30: 1,250.00 | N30: 1,250.00 | O30: 1,250.00 | Q30: =SUM(Q27:Q29) -> 15,000.00
A31: Zbir vrednost direktnog marketinga automatski se izračunava u ovom redu, od ćelija D31 do O31, a godišnja Zbir vrednost u ćeliji Q31. Mini-grafikon se ažurira u ćeliji S31. | B31: Zbir vrednost direktnog marketinga RSD(000) | D31: =SUM(Direktna_pošta[[#Totals],[1. mesec]],Internet_marketing[[#Totals],[1. mesec]],Direktni_marketing[[#Totals],[1. mesec]]) -> 1,839.00 | E31: =SUM(Direktna_pošta[[#Totals],[2. mesec]],Internet_marketing[[#Totals],[2. mesec]],Direktni_marketing[[#Totals],[2. mesec]]) -> 1,281.85 | F31: =SUM(Direktna_pošta[[#Totals],[3. mesec]],Internet_marketing[[#Totals],[3. mesec]],Direktni_marketing[[#Totals],[3. mesec]]) -> 1,311.94 | G31: =SUM(Direktna_pošta[[#Totals],[4. mesec]],Internet_marketing[[#Totals],[4. mesec]],Direktni_marketing[[#Totals],[4. mesec]]) -> 1,282.05 | H31: =SUM(Direktna_pošta[[#Totals],[5. mesec]],Internet_marketing[[#Totals],[5. mesec]],Direktni_marketing[[#Totals],[5. mesec]]) -> 1,311.95 | I31: =SUM(Direktna_pošta[[#Totals],[6. mesec]],Internet_marketing[[#Totals],[6. mesec]],Direktni_marketing[[#Totals],[6. mesec]]) -> 1,281.94 | J31: =SUM(Direktna_pošta[[#Totals],[7. mesec]],Internet_marketing[[#Totals],[7. mesec]],Direktni_marketing[[#Totals],[7. mesec]]) -> 1,311.90 | K31: =SUM(Direktna_pošta[[#Totals],[8. mesec]],Internet_marketing[[#Totals],[8. mesec]],Direktni_marketing[[#Totals],[8. mesec]]) -> 1,281.84 | L31: =SUM(Direktna_pošta[[#Totals],[9. mesec]],Internet_marketing[[#Totals],[9. mesec]],Direktni_marketing[[#Totals],[9. mesec]]) -> 1,311.80 | M31: =SUM(Direktna_pošta[[#Totals],[10. mesec]],Internet_marketing[[#Totals],[10. mesec]],Direktni_marketing[[#Totals],[10. mesec]]) -> 1,281.80 | N31: =SUM(Direktna_pošta[[#Totals],[11. mesec]],Internet_marketing[[#Totals],[11. mesec]],Direktni_marketing[[#Totals],[11. mesec]]) -> 1,336.80 | O31: =SUM(Direktna_pošta[[#Totals],[12. mesec]],Internet_marketing[[#Totals],[12. mesec]],Direktni_marketing[[#Totals],[12. mesec]]) -> 1,281.80 | Q31: =SUM(Q30,Q24,Q17,Q9) -> 16,431.61
A32: Unesite detalje u tabelu Agent i broker počevši od ćelije sa desne strane. Zbir vrednost za agente i brokere za svaki mesec se automatski izračunava na kraju tabele i godišnja Zbir vrednost u ćeliji Q39. Mini-grafikon se ažurira u ćeliji S39. Sledeće uputstvo se nalazi u ćeliji A40. | B32: Stavke Agent/broker | C32: Cena | D32: 1. mesec | E32: 2. mesec | F32: 3. mesec | G32: 4. mesec | H32: 5. mesec | I32: 6. mesec | J32: 7. mesec | K32: 8. mesec | L32: 9. mesec | M32: 10. mesec | N32: 11. mesec | O32: 12. mesec
B33: AGENT/BROKER (% UKUPNE PRODAJE) | D33: 10% | E33: 10% | F33: 10% | G33: 10% | H33: 10% | I33: 10% | J33: 10% | K33: 10% | L33: 10% | M33: 10% | N33: 10% | O33: 10%
B34: Komunikacija | D34: 50 | E34: 50 | F34: 50 | G34: 50 | H34: 50 | I34: 50 | J34: 50 | K34: 50 | L34: 50 | M34: 50 | N34: 50 | O34: 50 | Q34: =SUM('Budžet marketinga kanala'!$D34:$O34) -> 600.00
B35: Obuka | D35: 250.00 | E35: 250.00 | F35: 250.00 | G35: 250.00 | H35: 250.00 | I35: 250.00 | J35: 250.00 | K35: 250.00 | L35: 250.00 | M35: 250.00 | N35: 250.00 | O35: 250.00 | Q35: =SUM('Budžet marketinga kanala'!$D35:$O35) -> 3,000.00
B36: Promocije | D36: 600.00 | E36: 600.00 | F36: 600.00 | G36: 600.00 | H36: 600.00 | I36: 600.00 | J36: 600.00 | K36: 600.00 | L36: 600.00 | M36: 600.00 | N36: 600.00 | O36: 600.00 | Q36: =SUM('Budžet marketinga kanala'!$D36:$O36) -> 7,200.00
B37: Popusti | C37: 10.00% | D37: =D3*D33*$C$37 -> 7.50 | E37: 2.00 | F37: 5.00 | G37: 15.00 | H37: 12.00 | I37: 15.00 | J37: 15.00 | K37: 18.00 | L37: 20.00 | M37: 20.00 | N37: 20.00 | O37: 20.00 | Q37: =SUM('Budžet marketinga kanala'!$D37:$O37) -> 169.50
B38: Provizija (% prodaje agenta) | C38: 10.00% | D38: =D3*D33*$C$38 -> 7.50 | E38: 2.00 | F38: 5.00 | G38: 15.00 | H38: 12.00 | I38: 15.00 | J38: 15.00 | K38: 18.00 | L38: 20.00 | M38: 20.00 | N38: 20.00 | O38: 20.00 | Q38: =SUM('Budžet marketinga kanala'!$D38:$O38) -> 169.50
B39: Zbir vrednost u RSD(000) za agente/brokere | D39: =SUM(D34:D38) -> 915.00 | E39: =SUM(E34:E38) -> 904.00 | F39: 910.00 | G39: 930.00 | H39: 924.00 | I39: 930.00 | J39: 930.00 | K39: 936.00 | L39: 940.00 | M39: 940.00 | N39: 940.00 | O39: 940.00 | Q39: =SUM(Q34:Q38) -> 11,139.00
A40: Unesite detalje u tabelu Distributeri počevši od ćelije sa desne strane. Zbir vrednost za distributere za svaki mesec se automatski izračunava na kraju tabele i godišnja Zbir vrednost u ćeliji Q46. Mini-grafikon se ažurira u ćeliji S46. Sledeće uputstvo se nalazi u ćeliji A47. | B40: Stavke distributera | C40: Cena | D40: 1. mesec | E40: 2. mesec | F40: 3. mesec | G40: 4. mesec | H40: 5. mesec | I40: 6. mesec | J40: 7. mesec | K40: 8. mesec | L40: 9. mesec | M40: 10. mesec | N40: 11. mesec | O40: 12. mesec
B41: DISTRIBUTERI (% UKUPNE PRODAJE) | D41: 0% | E41: 0% | F41: 0% | G41: 0% | H41: 0% | I41: 15% | J41: 20% | K41: 40% | L41: 40% | M41: 40% | N41: 40% | O41: 40%
B42: Komunikacija | D42: 50 | E42: 50 | F42: 50 | G42: 50 | H42: 50 | I42: 50 | J42: 50 | K42: 50 | L42: 50 | M42: 50 | N42: 50 | O42: 50 | Q42: =SUM('Budžet marketinga kanala'!$D42:$O42) -> 600.00
B43: Obuka | D43: 250.00 | E43: 250.00 | F43: 250.00 | G43: 250.00 | H43: 250.00 | I43: 250.00 | J43: 250.00 | K43: 250.00 | L43: 250.00 | M43: 250.00 | N43: 250.00 | O43: 250.00 | Q43: =SUM(Distributeri[[#This Row],[1. mesec]:[12. mesec]]) -> 3,000.00
B44: Promocije | D44: 600.00 | E44: 600.00 | F44: 600.00 | G44: 600.00 | H44: 600.00 | I44: 600.00 | J44: 600.00 | K44: 600.00 | L44: 600.00 | M44: 600.00 | N44: 600.00 | O44: 600.00 | Q44: =SUM(Distributeri[[#This Row],[1. mesec]:[12. mesec]]) -> 7,200.00
B45: Provizije/popusti (% prodaje distributera) | C45: 15.00% | D45: =D3*D41*$C$45 -> 0 | E45: 0 | F45: 0 | G45: 0 | H45: 0 | I45: 33.75 | J45: 45 | K45: 108 | L45: 120 | M45: 120 | N45: 120 | O45: 120 | Q45: =SUM(Distributeri[[#This Row],[1. mesec]:[12. mesec]]) -> 666.75
B46: Zbir vrednost za distributere RSD(000) | D46: =SUM(D42:D45) -> 900.00 | E46: =SUM(E42:E45) -> 900.00 | F46: 900.00 | G46: 900.00 | H46: 900.00 | I46: 933.75 | J46: 945.00 | K46: 1,008.00 | L46: 1,020.00 | M46: 1,020.00 | N46: 1,020.00 | O46: 1,020.00 | Q46: =SUM(Q42:Q45) -> 11,466.75
A47: Unesite detalje u tabelu Prodavac počevši od ćelije sa desne strane. Zbir vrednost za prodavca za svaki mesec se automatski izračunava na kraju tabele i godišnja Zbir vrednost u ćeliji Q53. Mini-grafikon se ažurira u ćeliji S53. Sledeće uputstvo se nalazi u ćeliji A54. | B47: Stavke prodavca | C47: Cena | D47: 1. mesec | E47: 2. mesec | F47: 3. mesec | G47: 4. mesec | H47: 5. mesec | I47: 6. mesec | J47: 7. mesec | K47: 8. mesec | L47: 9. mesec | M47: 10. mesec | N47: 11. mesec | O47: 12. mesec
B48: PRODAVAC (% UKUPNE PRODAJE) | D48: 0% | E48: 0% | F48: 25% | G48: 60% | H48: 67% | I48: 60% | J48: 60% | K48: 50% | L48: 30% | M48: 30% | N48: 30% | O48: 30%
B49: Komunikacija | D49: 50 | E49: 50 | F49: 50 | G49: 50 | H49: 50 | I49: 50 | J49: 50 | K49: 50 | L49: 50 | M49: 50 | N49: 50 | O49: 50
B50: Obuka | D50: 250.00 | E50: 250.00 | F50: 250.00 | G50: 250.00 | H50: 250.00 | I50: 250.00 | J50: 250.00 | K50: 250.00 | L50: 250.00 | M50: 250.00 | N50: 250.00 | O50: 250.00 | Q50: =SUM('Budžet marketinga kanala'!$D49:$O49) -> 600.00
B51: Promocije | D51: 600.00 | E51: 600.00 | F51: 600.00 | G51: 600.00 | H51: 600.00 | I51: 600.00 | J51: 600.00 | K51: 600.00 | L51: 600.00 | M51: 600.00 | N51: 600.00 | O51: 600.00 | Q51: =SUM('Budžet marketinga kanala'!$D50:$O50) -> 3,000.00
B52: Provizije/popusti (% od prodaje) | C52: 10.00% | D52: =D3*D48*$C$52 -> 0 | E52: 0 | F52: 12.5 | G52: 90 | H52: 80.4 | I52: 90 | J52: 90 | K52: 90 | L52: 60 | M52: 60 | N52: 60 | O52: 60 | Q52: =SUM('Budžet marketinga kanala'!$D52:$O52) -> 692.90
B53: Zbir vrednost za prodavca RSD(000) | D53: =SUM(D49:D52) -> 900.00 | E53: =SUM(E49:E52) -> 900.00 | F53: 912.50 | G53: 990.00 | H53: 980.40 | I53: 990.00 | J53: 990.00 | K53: 990.00 | L53: 960.00 | M53: 960.00 | N53: 960.00 | O53: 960.00 | Q53: =SUM(Q50:Q52) -> 4,292.90
A54: Unesite detalje u tabelu Pribavljanje i zadržavanje klijenata počevši od ćelije u desnom uglu. Zbir vrednost za CAR za svaki mesec se automatski izračunava na kraju tabele i godišnja Zbir vrednost u ćeliji Q59. Mini-grafikon se ažurira u ćeliji S59. Sledeće uputstvo se nalazi u ćeliji A60. | B54: Stavke kupca akvizicija i zadržavanje (auto) | C54: Cena | D54: 1. mesec | E54: 2. mesec | F54: 3. mesec | G54: 4. mesec | H54: 5. mesec | I54: 6. mesec | J54: 7. mesec | K54: 8. mesec | L54: 9. mesec | M54: 10. mesec | N54: 11. mesec | O54: 12. mesec
B55: PRONALAŽENJE I ZADRŽAVANJE KLIJENATA (CAR)
B56: Ljudski resursi | D56: 50 | E56: 50 | F56: 50 | G56: 50 | H56: 50 | I56: 50 | J56: 50 | K56: 50 | L56: 50 | M56: 50 | N56: 50 | O56: 50 | Q56: =SUM('Budžet marketinga kanala'!$D56:$O56) -> 600.00
B57: Komunikacija | D57: 250.00 | E57: 250.00 | F57: 250.00 | G57: 250.00 | H57: 250.00 | I57: 250.00 | J57: 250.00 | K57: 250.00 | L57: 250.00 | M57: 250.00 | N57: 250.00 | O57: 250.00 | Q57: =SUM('Budžet marketinga kanala'!$D57:$O57) -> 3,000.00
B58: Promocije/kuponi | D58: 600 | E58: 600 | F58: 600 | G58: 600 | H58: 600 | I58: 600 | J58: 600 | K58: 600 | L58: 600 | M58: 600 | N58: 600 | O58: 600 | Q58: =SUM('Budžet marketinga kanala'!$D58:$O58) -> 7,200.00
B59: Zbir vrednost za CAR RSD(000) | D59: =SUM(D56:D58) -> 900.00 | E59: =SUM(E56:E58) -> 900.00 | F59: 900.00 | G59: 900.00 | H59: 900.00 | I59: 900.00 | J59: 900.00 | K59: 900.00 | L59: 900.00 | M59: 900.00 | N59: 900.00 | O59: 900.00 | Q59: =SUM(Q56:Q58) -> 10,800.00
A60: Unesite detalje u tabelu Ostali troškovi počevši od ćelije sa desne strane. Zbir vrednost za ostale troškove za svaki mesec se automatski izračunava na kraju tabele i godišnja Zbir vrednost u ćeliji Q65. Mini-grafikon se ažurira u ćeliji S65. Sledeće uputstvo se nalazi u ćeliji A67. | B60: Stavke drugih troškova | C60: Cena | D60: 1. mesec | E60: 2. mesec | F60: 3. mesec | G60: 4. mesec | H60: 5. mesec | I60: 6. mesec | J60: 7. mesec | K60: 8. mesec | L60: 9. mesec | M60: 10. mesec | N60: 11. mesec | O60: 12. mesec
B61: OSTALI TROŠKOVI
B62: Putovanja | D62: 50 | E62: 50 | F62: 50 | G62: 50 | H62: 50 | I62: 50 | J62: 50 | K62: 50 | L62: 50 | M62: 50 | N62: 50 | O62: 50 | Q62: =SUM('Budžet marketinga kanala'!$D62:$O62) -> 600.00
B63: Infrastruktura (računar, telefon itd.) | D63: 250.00 | E63: 250.00 | F63: 250.00 | G63: 250.00 | H63: 250.00 | I63: 250.00 | J63: 250.00 | K63: 250.00 | L63: 250.00 | M63: 250.00 | N63: 250.00 | O63: 250.00 | Q63: =SUM('Budžet marketinga kanala'!$D63:$O63) -> 3,000.00
B64: Podrška kanala | D64: 600 | E64: 600 | F64: 600 | G64: 600 | H64: 600 | I64: 600 | J64: 600 | K64: 600 | L64: 600 | M64: 600 | N64: 600 | O64: 600 | Q64: =SUM('Budžet marketinga kanala'!$D64:$O64) -> 7,200.00
B65: Zbir vrednost za ostale troškove RSD(000) | D65: =SUM(D62:D64) -> 900.00 | E65: =SUM(E62:E64) -> 900.00 | F65: 900.00 | G65: 900.00 | H65: 900.00 | I65: 900.00 | J65: 900.00 | K65: 900.00 | L65: 900.00 | M65: 900.00 | N65: 900.00 | O65: 900.00 | Q65: =SUM(Q62:Q64) -> 10,800.00
A67: Zbir vrednost budžeta marketinga se automatski izračunava za svaki mesec u ovom redu, od ćelija D67 do O67, a Zbir godišnja vrednost u ćeliji Q67. Mini-grafikon se automatski ažurira u ćeliji S67. | B67: Zbir VREDNOST BUDŽETA MARKETINGA: | D67: =SUM(Drugi_troškovi[[#Totals],[1. mesec]],AUTOMOBIL[[#Totals],[1. mesec]],Prodavac[[#Totals],[1. mesec]],Distributeri[[#Totals],[1. mesec]],Agenti_i_brokeri[[#Totals],[1. mesec]],D31) -> 6,354.00 | E67: =SUM(Drugi_troškovi[[#Totals],[2. mesec]],AUTOMOBIL[[#Totals],[2. mesec]],Prodavac[[#Totals],[2. mesec]],Distributeri[[#Totals],[2. mesec]],Agenti_i_brokeri[[#Totals],[2. mesec]],E31) -> 5,785.85 | F67: =SUM(Drugi_troškovi[[#Totals],[2. mesec]],AUTOMOBIL[[#Totals],[2. mesec]],Prodavac[[#Totals],[2. mesec]],Distributeri[[#Totals],[2. mesec]],Agenti_i_brokeri[[#Totals],[2. mesec]],F31) -> 5,815.94 | G67: =SUM(Drugi_troškovi[[#Totals],[3. mesec]],AUTOMOBIL[[#Totals],[3. mesec]],Prodavac[[#Totals],[3. mesec]],Distributeri[[#Totals],[3. mesec]],Agenti_i_brokeri[[#Totals],[3. mesec]],G31) -> 5,804.55 | H67: =SUM(Drugi_troškovi[[#Totals],[3. mesec]],AUTOMOBIL[[#Totals],[3. mesec]],Prodavac[[#Totals],[3. mesec]],Distributeri[[#Totals],[3. mesec]],Agenti_i_brokeri[[#Totals],[3. mesec]],H31) -> 5,834.45 | I67: =SUM(Drugi_troškovi[[#Totals],[4. mesec]],AUTOMOBIL[[#Totals],[4. mesec]],Prodavac[[#Totals],[4. mesec]],Distributeri[[#Totals],[4. mesec]],Agenti_i_brokeri[[#Totals],[4. mesec]],I31) -> 5,901.94 | J67: =SUM(Drugi_troškovi[[#Totals],[4. mesec]],AUTOMOBIL[[#Totals],[4. mesec]],Prodavac[[#Totals],[4. mesec]],Distributeri[[#Totals],[4. mesec]],Agenti_i_brokeri[[#Totals],[4. mesec]],J31) -> 5,931.90 | K67: =SUM(Drugi_troškovi[[#Totals],[5. mesec]],AUTOMOBIL[[#Totals],[5. mesec]],Prodavac[[#Totals],[5. mesec]],Distributeri[[#Totals],[5. mesec]],Agenti_i_brokeri[[#Totals],[5. mesec]],K31) -> 5,886.24 | L67: =SUM(Drugi_troškovi[[#Totals],[5. mesec]],AUTOMOBIL[[#Totals],[5. mesec]],Prodavac[[#Totals],[5. mesec]],Distributeri[[#Totals],[5. mesec]],Agenti_i_brokeri[[#Totals],[5. mesec]],L31) -> 5,916.20 | M67: =SUM(Drugi_troškovi[[#Totals],[6. mesec]],AUTOMOBIL[[#Totals],[6. mesec]],Prodavac[[#Totals],[6. mesec]],Distributeri[[#Totals],[6. mesec]],Agenti_i_brokeri[[#Totals],[6. mesec]],M31) -> 5,935.55 | N67: =SUM(Drugi_troškovi[[#Totals],[6. mesec]],AUTOMOBIL[[#Totals],[6. mesec]],Prodavac[[#Totals],[6. mesec]],Distributeri[[#Totals],[6. mesec]],Agenti_i_brokeri[[#Totals],[6. mesec]],N31) -> 5,990.55 | O67: =SUM(Drugi_troškovi[[#Totals],[7. mesec]],AUTOMOBIL[[#Totals],[7. mesec]],Prodavac[[#Totals],[7. mesec]],Distributeri[[#Totals],[7. mesec]],Agenti_i_brokeri[[#Totals],[7. mesec]],O31) -> 5,946.80 | Q67: =SUM(D67:O67) -> 71,103.96
